bitfinex/quotes_SOLUSD_20240725
["timestamp","ask_amount","ask_price","bid_price","bid_amount"]
[1721865600359,69.5,178.46,178.33,20.0]
[1721865600554,15.2104,178.45,178.33,20.0]
[1721865600937,15.2104,178.45,178.32,45.0]
[1721865601550,0.91256494,178.44,178.32,45.0]
[1721865602263,0.91256494,178.44,178.33,20.0]
[1721865603245,45.91256494,178.44,178.33,20.0]
[1721865603444,16.17922213,178.43,178.29,22.25719996]
[1721865603646,6.1209,178.41,178.3,45.0]
[1721865603841,385.91256494,178.4,178.31,20.0]
[1721865604042,0.91256494,178.39,178.31,20.0]
[1721865604242,385.0,178.38,178.31,20.0]
[1721865604548,385.0,178.38,178.28,20.0]
[1721865604962,385.0,178.38,178.29,1.12140475]
[1721865605472,385.0,178.38,178.28,21.1213612]
[1721865605769,15.0181,178.37,178.27,3.42734765]
[1721865605960,15.0181,178.37,178.27,48.42734765]
[1721865606167,15.0181,178.37,178.27,47.30598224]
[1721865606944,15.0181,178.37,178.27,2.30598224]
[1721865607145,15.0181,178.37,178.26,45.0]
[1721865607469,15.93066494,178.37,178.25,30.01878966]
[1721865607661,15.0181,178.37,178.25,30.01878966]
[1721865608384,31.19911977,178.37,178.3,12.25]
[1721865608542,15.0181,178.37,178.33,12.25]
[1721865608743,15.0181,178.37,178.34,32.25]
[1721865610169,15.0181,178.37,178.35,12.25]
[1721865610370,15.0181,178.37,178.34,12.25]
[1721865610574,15.0181,178.37,178.35,20.0]
[1721865610875,15.0181,178.37,178.34,32.25]
[1721865611052,15.0181,178.37,178.34,20.0]
[1721865611255,15.2435,178.42,178.36,12.25]
[1721865611577,16.17692606,178.46,178.41,12.25]
[1721865611752,16.17692606,178.46,178.42,32.25]
[1721865612072,21.762,178.47,178.44,12.25]
[1721865612380,21.762,178.47,178.42,20.0]
[1721865612578,34.012,178.47,178.42,12.25]
[1721865612763,21.762,178.47,178.42,12.25]
[1721865612968,12.25,178.46,178.41,12.25]
[1721865613165,21.762,178.47,178.42,32.25]
[1721865613460,15.2435,178.47,178.4,1.1208505]
[1721865613663,12.25,178.5,178.44,12.25]
[1721865613866,22.9529,178.51,178.47,12.25]
[1721865614074,22.9529,178.51,178.48,20.0]
[1721865614455,16.0851,178.53,178.48,20.0]
[1721865614952,16.0851,178.53,178.42,20.0]
[1721865615152,16.0851,178.53,178.43,45.0]
[1721865615373,16.99766494,178.53,178.44,20.0]
[1721865615875,33.16671516,178.53,178.44,20.0]
[1721865616352,16.0851,178.53,178.44,20.0]
[1721865616550,16.0851,178.53,178.45,45.0]
[1721865616753,16.0851,178.53,178.46,20.0]
[1721865617357,33.86766494,178.53,178.38,6.3344]
[1721865617691,50.03689031,178.53,178.38,6.3344]
[1721865617855,385.0,178.52,178.38,6.3344]
[1721865618056,0.91256494,178.51,178.38,6.3344]
[1721865618687,0.91256494,178.51,178.39,45.0]
[1721865619365,11.01949432,178.51,178.39,45.0]
[1721865619565,27.19127592,178.51,178.39,45.0]
[1721865619763,17.08434654,178.51,178.4,20.0]
[1721865620079,0.91256494,178.51,178.4,20.0]
[1721865620277,27.19142913,178.51,178.4,20.0]
[1721865620466,17.08417367,178.51,178.4,20.0]
[1721865620871,10.10750795,178.5,178.4,20.0]
[1721865621071,0.91256494,178.49,178.4,20.0]
[1721865621276,0.91256494,178.48,178.4,20.0]
[1721865621467,0.91256494,178.48,178.37,20.0]
[1721865621666,21.0583,178.47,178.37,20.0]
[1721865621872,0.91256494,178.46,178.31,5.51878966]
[1721865622072,385.91256494,178.45,178.32,30.0]
[1721865622266,10.11093156,178.44,178.32,30.0]
[1721865622465,0.91256494,178.43,178.32,30.0]
[1721865622675,0.91256494,178.42,178.31,5.51878966]
[1721865623686,0.91256494,178.41,178.32,20.0]
[1721865623889,0.91256494,178.41,178.3,20.0]
[1721865624578,10.11110991,178.43,178.3,20.0]
[1721865624781,0.91256494,178.42,178.3,20.0]
[1721865625159,0.91256494,178.42,178.31,45.0]
[1721865625363,0.91256494,178.42,178.32,20.0]
[1721865625797,15.4535,178.41,178.32,20.0]
[1721865625970,0.91256494,178.4,178.3,20.0]
[1721865626286,0.91256494,178.4,178.26,25.57138409]
[1721865626287,0.91256494,178.4,178.27,23.41946586]
[1721865626671,0.91256494,178.39,178.27,3.41946586]
[1721865626869,6.3314,178.38,178.27,3.41946586]
[1721865627178,0.91256494,178.37,178.23,6.80291989]
[1721865627363,16.3542,178.36,178.21,1.12138837]
[1721865629768,16.3542,178.36,178.23,24.45]
[1721865629967,16.3542,178.36,178.24,46.12157289]
[1721865630989,16.3542,178.36,178.26,24.45]
[1721865631191,16.3542,178.36,178.27,65.0]
[1721865631886,17.26676494,178.36,178.27,65.0]
[1721865632261,16.3542,178.36,178.27,65.0]
[1721865634793,16.3542,178.36,178.27,66.1214994]
[1721865635301,16.3542,178.36,178.27,65.0]
[1721865639890,17.26676494,178.36,178.27,65.0]
[1721865640378,16.3542,178.36,178.27,65.0]
[1721865640897,17.26676494,178.36,178.27,65.0]
[1721865641398,16.3542,178.36,178.27,65.0]
[1721865641699,16.3542,178.36,178.28,1.12149546]
[1721865642082,16.3542,178.36,178.27,65.0]
[1721865642497,16.3542,178.36,178.27,66.12145537]
[1721865644291,16.3542,178.36,178.27,65.0]
[1721865644483,16.3542,178.36,178.27,66.1215005]
[1721865644903,15.476,178.41,178.29,24.45]
[1721865645080,15.476,178.41,178.28,30.0]
[1721865645081,15.476,178.41,178.32,24.45]
[1721865645412,15.476,178.41,178.33,66.12103437]
[1721865646313,22.1196,178.5,178.39,24.45]
[1721865646612,22.1196,178.5,178.4,66.12058681]
[1721865648101,15.3103,178.54,178.4,66.12058681]
[1721865648314,15.3103,178.54,178.42,24.45]
[1721865648490,15.3103,178.54,178.43,66.12031188]
[1721865649293,15.3103,178.54,178.43,66.1203835]
[1721865651000,15.3103,178.54,178.45,24.45]
[1721865651209,15.3103,178.54,178.46,65.0]
[1721865651393,15.3103,178.54,178.46,66.12022441]
[1721865653913,15.3103,178.54,178.46,65.0]
[1721865654513,15.3103,178.54,178.46,66.12031065]
[1721865654812,15.3103,178.54,178.46,65.0]
[1721865656390,6.6191,178.56,178.46,65.0]
[1721865656901,6.6191,178.56,178.46,20.0]
[1721865657108,0.91256494,178.55,178.45,20.0]
[1721865657319,16.2289,178.54,178.39,22.56995223]
[1721865657617,0.91256494,178.53,178.4,1.12055959]
[1721865657933,0.91256494,178.53,178.39,22.57009881]
[1721865658221,0.91256494,178.53,178.4,1.12056001]
[1721865658806,0.91256494,178.53,178.39,22.57009888]
[1721865659004,0.91256494,178.53,178.39,47.02009888]
[1721865659201,17.14146494,178.54,178.4,1.12056068]
[1721865659507,17.14146494,178.54,178.4,21.12056068]
[1721865659903,17.14146494,178.54,178.41,45.0]
[1721865660116,17.14146494,178.54,178.42,20.0]
[1721865660401,0.91256494,178.53,178.43,45.0]
[1721865660617,16.2289,178.54,178.44,20.0]
[1721865661222,0.91256494,178.53,178.44,20.0]
[1721865661417,0.91256494,178.53,178.39,30.4213388]
[1721865661418,23.2183,178.52,178.36,30.6138]
[1721865661724,15.3812,178.5,178.36,24.45]
[1721865662022,0.91256494,178.49,178.36,24.45]
[1721865662321,15.3812,178.5,178.36,25.57085481]
[1721865662702,15.3812,178.5,178.37,20.0]
[1721865662922,15.3812,178.5,178.38,1.12073718]
[1721865663104,16.29376494,178.5,178.37,20.0]
[1721865663328,16.29376494,178.5,178.38,45.0]
[1721865663616,15.3812,178.5,178.38,45.0]
[1721865663928,15.3812,178.5,178.39,20.0]
[1721865664111,15.3812,178.5,178.4,45.0]
[1721865664312,15.3812,178.5,178.41,20.0]
[1721865665034,15.3812,178.5,178.42,45.0]
[1721865665328,15.3812,178.5,178.43,20.0]
[1721865665839,15.3812,178.5,178.41,20.0]
[1721865666825,0.91256494,178.49,178.41,20.0]
[1721865667016,0.91256494,178.48,178.36,24.45]
[1721865667408,0.91256494,178.48,178.37,45.0]
[1721865668415,0.91256494,178.48,178.38,20.0]
[1721865669108,16.2097,178.46,178.33,24.45]
[1721865669414,0.91256494,178.45,178.31,15.67380476]
[1721865669723,0.91256494,178.45,178.31,9.30410476]
[1721865670025,0.91256494,178.45,178.31,8.18301762]
[1721865670412,0.91256494,178.45,178.31,5.9713388]
[1721865670602,0.91256494,178.45,178.29,42.12891533]
[1721865670799,17.76256494,178.45,178.3,1.12120457]
[1721865671005,45.0,178.44,178.3,1.12129471]
[1721865671217,45.0,178.44,178.29,25.57130076]
[1721865671706,21.9287,178.42,178.3,1.12130083]
[1721865672529,39.69126494,178.42,178.27,5.9713388]
[1721865672722,20.0,178.41,178.27,5.9713388]
[1721865673008,0.91256494,178.4,178.26,24.45]
[1721865673209,0.91256494,178.39,178.26,24.45]
[1721865674234,0.91256494,178.39,178.27,65.0]
[1721865676235,15.9216,178.38,178.27,20.0]
[1721865676439,0.91256494,178.37,178.24,21.12162353]
[1721865676736,15.9216,178.38,178.26,24.45]
[1721865676930,15.9216,178.38,178.27,21.12123829]
[1721865677709,15.9216,178.38,178.28,45.0]
[1721865677914,15.9216,178.38,178.29,45.57119051]
[1721865678113,15.9216,178.38,178.3,46.12119051]
[1721865678329,15.9216,178.38,178.31,20.0]
[1721865678639,15.9216,178.38,178.32,45.0]
[1721865678833,15.9216,178.38,178.33,20.0]
[1721865680031,15.9216,178.38,178.34,45.0]
[1721865680340,15.9216,178.38,178.35,20.0]
[1721865680544,15.9216,178.38,178.33,20.0]
[1721865681243,15.9216,178.38,178.3,21.12122704]
[1721865681436,15.9216,178.38,178.31,45.0]
[1721865681639,15.9216,178.38,178.32,20.0]
[1721865681932,15.9216,178.38,178.33,45.0]
[1721865682136,15.9216,178.38,178.34,20.0]
[1721865685441,15.9216,178.38,178.3,20.0]
[1721865685726,15.9216,178.38,178.31,75.0]
[1721865685930,15.9216,178.38,178.32,20.0]
[1721865686252,15.9216,178.38,178.33,45.0]
[1721865686459,15.9216,178.38,178.34,20.0]
[1721865687248,15.9216,178.38,178.3,20.0]
[1721865687557,15.9216,178.38,178.31,45.0]
[1721865687853,15.9216,178.38,178.32,20.0]
[1721865688061,15.7255,178.42,178.33,70.57114657]
[1721865688391,15.7255,178.42,178.34,20.0]
[1721865688657,20.0,178.62,178.34,20.0]
[1721865688658,16.1789,178.47,178.39,24.45]
[1721865688827,16.1789,178.47,178.4,66.12060662]
[1721865690860,16.1789,178.47,178.4,65.0]
[1721865691047,16.1789,178.47,178.36,24.45]
[1721865691230,16.1789,178.47,178.37,30.0]
[1721865691850,16.1789,178.47,178.37,31.12093321]
[1721865692033,16.1789,178.47,178.37,30.0]
[1721865692235,16.1789,178.47,178.38,20.0]
[1721865692452,16.1789,178.47,178.36,25.57093418]
[1721865692625,16.1789,178.47,178.38,1.12093418]
[1721865692829,16.1789,178.47,178.37,46.12066554]
[1721865693632,16.1789,178.47,178.38,20.0]
[1721865693831,16.1789,178.47,178.39,45.0]
[1721865694159,16.1789,178.47,178.4,20.0]
[1721865694456,16.1789,178.47,178.41,45.0]
[1721865694677,16.1789,178.47,178.42,20.0]
[1721865696874,16.1789,178.47,178.43,45.0]
[1721865697067,16.1789,178.47,178.44,20.0]
[1721865698455,16.1789,178.47,178.4,20.0]
[1721865698656,16.1789,178.47,178.37,20.0]
[1721865698857,16.1789,178.47,178.38,45.0]
[1721865699060,16.1789,178.47,178.39,20.0]
[1721865699360,16.1789,178.47,178.4,45.0]
[1721865699695,16.1789,178.47,178.41,20.0]
[1721865699853,16.1789,178.47,178.42,45.0]
[1721865700151,16.1789,178.47,178.43,20.0]
[1721865701054,16.1789,178.47,178.36,25.57075794]
[1721865701265,16.1789,178.47,178.37,75.0]
[1721865701668,16.1789,178.47,178.37,45.0]
[1721865702164,16.1789,178.47,178.38,20.0]
[1721865702363,16.1789,178.47,178.39,45.0]
[1721865702673,16.1789,178.47,178.4,20.0]
[1721865703175,16.1789,178.47,178.41,45.0]
[1721865703355,16.1789,178.47,178.42,20.0]
[1721865703969,16.1789,178.47,178.37,20.0]
[1721865704155,16.1789,178.47,178.38,45.0]
[1721865704363,16.1789,178.47,178.39,20.0]
[1721865705062,16.1789,178.47,178.33,1.12083316]
[1721865705063,6.99496494,178.46,178.29,11.81397745]
[1721865705268,6.99496494,178.46,178.34,30.0]
[1721865705269,0.91256494,178.45,178.34,30.0]
[1721865705653,15.9391,178.44,178.3,25.57115714]
[1721865705850,0.91256494,178.43,178.3,25.57115714]
[1721865706054,0.91256494,178.42,178.3,25.57115714]
[1721865706250,0.91256494,178.42,178.31,20.0]
[1721865706752,0.91256494,178.42,178.3,25.57115714]
[1721865706753,0.91256494,178.42,178.3,24.45]
[1721865708287,0.91256494,178.43,178.31,65.0]
[1721865708777,15.9391,178.44,178.31,65.0]
[1721865712480,15.9391,178.44,178.32,1.12119781]
[1721865712853,15.9391,178.44,178.33,1.12105453]
[1721865715081,15.9391,178.44,178.32,1.12105548]
[1721865715287,16.85166494,178.44,178.31,66.12114528]
[1721865715459,16.85166494,178.44,178.31,20.0]
[1721865715460,15.9391,178.44,178.31,20.0]
[1721865715671,7.11546494,178.43,178.3,24.45]
[1721865715970,0.91256494,178.42,178.3,24.45]
[1721865716158,0.91256494,178.42,178.27,25.57129682]
[1721865716369,15.3929,178.41,178.28,30.0]
[1721865716661,0.91256494,178.4,178.28,30.0]
[1721865716876,15.3929,178.41,178.29,21.12137731]
[1721865717072,15.3929,178.41,178.3,1.12124342]
[1721865718088,15.3929,178.41,178.28,20.0]
[1721865718089,15.3929,178.41,178.29,69.45]
[1721865718296,15.3929,178.41,178.3,20.0]
[1721865718460,15.3929,178.41,178.31,45.0]
[1721865718659,15.3929,178.41,178.32,20.0]
[1721865721388,0.91256494,178.4,178.32,20.0]
[1721865721575,0.91256494,178.39,178.32,20.0]
[1721865721887,0.91256494,178.39,178.3,20.0]
[1721865722073,0.91256494,178.39,178.26,33.69698801]
[1721865722275,0.91256494,178.39,178.27,45.0]
[1721865722697,0.91256494,178.39,178.26,31.42328301]
[1721865722698,6.1302,178.38,178.26,31.42328301]
[1721865722984,16.5471,178.37,178.26,24.45]
[1721865723401,16.5471,178.37,178.27,20.0]
[1721865723588,16.5471,178.37,178.27,21.12147095]
[1721865723801,16.5471,178.37,178.28,45.0]
[1721865723996,16.5471,178.37,178.29,45.57127514]
[1721865724167,16.5471,178.37,178.3,45.0]
[1721865724368,16.5471,178.37,178.31,20.0]
[1721865724567,16.5471,178.37,178.32,45.0]
[1721865724783,16.5471,178.37,178.33,20.0]
[1721865724992,16.5471,178.37,178.34,45.0]
[1721865725196,16.5471,178.37,178.35,20.0]
[1721865727200,16.5471,178.37,178.3,21.12127823]
[1721865727494,16.5471,178.37,178.31,45.0]
[1721865727796,16.5471,178.37,178.32,20.0]
[1721865728094,16.5471,178.37,178.33,45.0]
[1721865728266,16.5471,178.37,178.34,20.0]
[1721865729590,16.0471,178.37,178.3,20.0]
[1721865729791,16.0471,178.37,178.31,45.0]
[1721865729987,16.0471,178.37,178.32,20.0]
[1721865734280,16.0471,178.37,178.35,12.24]
[1721865734804,15.0174,178.41,178.36,32.24]
[1721865735005,15.0174,178.41,178.38,12.24]
[1721865735504,15.0174,178.41,178.37,12.24]
[1721865735681,15.0174,178.41,178.38,20.0]
[1721865736475,15.0174,178.41,178.33,20.0]
[1721865736679,15.0174,178.41,178.34,46.12105854]
[1721865736903,15.0174,178.41,178.35,20.0]
[1721865737087,16.2454,178.45,178.36,46.1209692]
[1721865737288,16.2454,178.45,178.37,20.0]
[1721865737484,16.2454,178.45,178.38,46.1209035]
[1721865737806,16.2454,178.45,178.39,20.0]
[1721865738098,16.2454,178.45,178.4,45.0]
[1721865738304,16.2454,178.45,178.41,20.0]
[1721865738803,16.2454,178.45,178.39,20.0]
[1721865739410,16.2454,178.45,178.4,45.0]
[1721865740005,16.2454,178.45,178.41,20.0]
[1721865740377,16.2454,178.45,178.36,20.0]
[1721865740578,16.2454,178.45,178.37,45.0]
[1721865740907,16.2454,178.45,178.38,20.0]
[1721865742512,17.15796494,178.45,178.38,20.0]
[1721865742805,16.2454,178.45,178.36,20.0]
[1721865743108,22.76176494,178.45,178.36,20.0]
[1721865743307,21.8492,178.45,178.36,20.0]
[1721865743612,16.2454,178.45,178.36,20.0]
[1721865744111,21.8492,178.45,178.35,24.48]
[1721865744310,10.11050688,178.44,178.36,45.0]
[1721865744686,15.71460688,178.44,178.36,45.0]
[1721865745608,10.11050688,178.44,178.37,20.0]
[1721865751218,10.11050688,178.44,178.38,45.0]
[1721865751702,10.11050688,178.44,178.39,20.0]
[1721865752390,10.11050688,178.44,178.4,46.12080549]
[1721865752592,16.2454,178.45,178.4,45.0]
[1721865752814,16.4939,178.49,178.41,20.0]
[1721865753019,10.1092193,178.48,178.42,46.12066019]
[1721865753196,10.1092193,178.48,178.43,20.0]
[1721865755713,10.10905268,178.47,178.43,20.0]
[1721865756026,10.10905268,178.46,178.43,20.0]
[1721865756200,16.4939,178.49,178.45,12.23]
[1721865756396,10.10899621,178.48,178.46,20.0]
[1721865757208,10.10899621,178.48,178.44,12.23]
[1721865757412,10.10899621,178.48,178.46,12.23]
[1721865757800,10.10899621,178.48,178.45,12.23]
[1721865757997,10.10899621,178.48,178.46,20.0]
[1721865758523,16.4939,178.49,178.46,20.0]
[1721865760013,28.7239,178.49,178.46,20.0]
[1721865760215,28.7239,178.49,178.45,20.0]
[1721865767432,28.7239,178.49,178.44,20.0]
[1721865768315,28.7239,178.49,178.44,32.23]
[1721865771219,28.7239,178.49,178.44,20.0]
[1721865773345,16.4939,178.49,178.46,12.23]
[1721865774716,16.4939,178.49,178.45,12.23]
[1721865775046,16.4939,178.49,178.46,20.0]
[1721865775220,16.4939,178.49,178.44,32.23]
[1721865775937,16.4939,178.49,178.45,12.23]
[1721865776128,16.4939,178.49,178.46,20.0]
[1721865776332,15.9213,178.53,178.46,32.23]
[1721865776529,22.33802587,178.52,178.46,32.23]
[1721865776735,10.10802587,178.51,178.47,12.23]
[1721865776922,10.10802587,178.5,178.47,12.23]
[1721865777122,10.10802587,178.52,178.47,12.23]
[1721865778343,10.10765795,178.51,178.46,32.23]
[1721865778843,12.23,178.5,178.46,20.0]
[1721865779051,22.33765795,178.49,178.46,20.0]
[1721865779211,12.23,178.49,178.45,20.0]
[1721865780239,12.23,178.49,178.44,20.0]
[1721865780441,12.23,178.51,178.45,12.23]
[1721865780640,10.10795964,178.5,178.46,32.23]
[1721865780963,10.10799665,178.49,178.47,20.0]
[1721865781247,12.23,178.51,178.47,20.0]
[1721865781542,22.33797173,178.5,178.46,20.0]
[1721865781747,10.10797173,178.49,178.45,20.0]
[1721865782751,22.33797173,178.49,178.45,20.0]
[1721865783041,12.23,178.49,178.45,20.0]
[1721865783430,12.23,178.5,178.45,32.23]
[1721865784031,12.23,178.51,178.45,32.23]
[1721865784255,10.10762866,178.5,178.45,32.23]
[1721865786037,12.23,178.51,178.45,32.23]
[1721865786235,10.10773301,178.5,178.45,32.23]
[1721865786554,12.23,178.52,178.46,13.35049676]
[1721865786757,10.1077279,178.51,178.47,20.0]
[1721865786928,28.1513,178.53,178.47,32.23]
[1721865787130,10.10759726,178.52,178.48,12.23]
[1721865787349,10.10759726,178.52,178.49,20.0]
[1721865787946,10.10759726,178.52,178.48,20.0]
[1721865788533,16.2408,178.58,178.51,12.23]
[1721865788743,16.2408,178.58,178.52,20.0]
[1721865788744,12.23,178.56,178.52,20.0]
[1721865789567,16.2408,178.58,178.52,32.23]
[1721865789727,12.23,178.57,178.52,32.23]
[1721865790761,13.14256494,178.57,178.52,20.0]
[1721865790952,13.0238657,178.63,178.56,12.23]
[1721865791258,13.0238657,178.63,178.52,42.9344]
[1721865791259,10.10195656,178.62,178.58,12.23]
[1721865791436,10.89582226,178.63,178.59,12.23]
[1721865791631,0.7938657,178.63,178.6,12.23]
[1721865792456,0.7938657,178.63,178.61,12.23]
[1721865792652,0.7938657,178.63,178.6,12.23]
[1721865793353,0.7938657,178.63,178.59,12.23]
[1721865793538,0.7938657,178.63,178.6,20.0]
[1721865793742,12.23,178.62,178.52,22.9344]
[1721865793965,17.8285,178.62,178.57,12.23]
[1721865794136,12.23,178.61,178.55,12.23]
[1721865794461,12.23,178.61,178.56,12.23]
[1721865794650,12.23,178.61,178.55,12.23]
[1721865795033,0.7938657,178.63,178.54,12.23]
[1721865795235,0.7938657,178.63,178.55,12.23]
[1721865796658,5.5988,178.61,178.55,12.23]
[1721865796853,5.5988,178.61,178.56,20.0]
[1721865797156,0.7938657,178.63,178.56,20.0]
[1721865797363,0.7938657,178.63,178.56,32.23]
[1721865797533,1.70643064,178.63,178.56,20.0]
[1721865797735,12.23,178.58,178.52,12.23]
[1721865797941,12.23,178.57,178.52,12.23]
[1721865798737,13.14256494,178.57,178.52,12.23]
[1721865798943,12.23,178.57,178.52,12.23]
[1721865799847,12.23,178.58,178.52,12.23]
[1721865800544,12.23,178.61,178.56,12.23]
[1721865800748,17.8288,178.61,178.56,12.23]
[1721865800954,17.8288,178.61,178.55,12.23]
[1721865800955,12.23,178.6,178.55,12.23]
[1721865801146,12.23,178.6,178.56,20.0]
[1721865801367,12.23,178.58,178.53,12.23]
[1721865801678,12.23,178.58,178.52,12.23]
[1721865801845,12.23,178.58,178.53,20.0]
[1721865802844,12.23,178.57,178.53,20.0]
[1721865803172,12.23,178.58,178.53,20.0]
[1721865804038,12.23,178.6,178.54,12.23]
[1721865804347,12.23,178.61,178.56,12.23]
[1721865804561,27.578,178.62,178.57,20.0]
[1721865804941,0.7938657,178.63,178.57,32.23]
[1721865805268,13.0238657,178.63,178.57,32.23]
[1721865805459,0.7938657,178.63,178.58,12.23]
[1721865805635,0.7938657,178.63,178.59,20.0]
[1721865806565,13.0238657,178.63,178.59,20.0]
[1721865806748,13.0238657,178.63,178.58,20.0]
[1721865807362,13.0238657,178.63,178.58,32.23]
[1721865807975,12.23,178.62,178.58,20.0]
[1721865808487,12.23,178.62,178.57,20.0]
[1721865808679,12.23,178.61,178.57,20.0]
[1721865808980,13.14256494,178.6,178.49,16.3667]
[1721865809169,12.23,178.55,178.5,12.23]
[1721865809356,12.23,178.55,178.49,28.5967]
[1721865810257,5.5993,178.6,178.5,20.0]
[1721865810654,0.7938657,178.63,178.5,45.56015687]
[1721865810971,0.7938657,178.63,178.51,45.0]
[1721865811277,0.7938657,178.63,178.52,21.11983747]
[1721865811483,0.7938657,178.63,178.53,45.0]
[1721865811692,6.3920657,178.63,178.54,20.0]
[1721865811970,5.5986,178.62,178.54,20.0]
[1721865812575,6.51136494,178.61,178.54,20.0]
[1721865812783,0.7938657,178.63,178.51,20.0]
[1721865812784,6.51166494,178.6,178.51,20.0]
[1721865812960,6.51166494,178.6,178.5,20.0]
[1721865813281,6.51166494,178.6,178.51,45.0]
[1721865813576,0.91256494,178.6,178.52,20.0]
[1721865813771,0.91256494,178.62,178.52,20.0]
[1721865814077,6.51116494,178.62,178.52,20.0]
[1721865814276,0.91256494,178.62,178.52,20.0]
[1721865814473,0.7938657,178.63,178.53,45.0]
[1721865814660,0.7938657,178.63,178.54,20.0]
[1721865815374,0.7938657,178.63,178.55,46.11991942]
[1721865815584,0.7938657,178.63,178.55,46.11968611]
[1721865815886,0.7938657,178.63,178.56,20.0]
[1721865816666,6.3920657,178.63,178.56,20.0]
[1721865816863,6.3920657,178.63,178.51,6.3188]
[1721865816864,0.7938657,178.63,178.54,20.0]
[1721865817171,5.5987,178.62,178.52,20.0]
[1721865817368,5.5987,178.61,178.52,20.0]
[1721865817879,5.5991,178.6,178.52,20.0]
[1721865818184,5.5987,178.62,178.52,20.0]
[1721865818683,0.7938657,178.63,178.52,21.12001389]
[1721865818884,0.7938657,178.63,178.53,45.0]
[1721865819083,0.7938657,178.63,178.54,20.0]
[1721865819385,0.7938657,178.63,178.55,46.11983363]
[1721865819570,0.7938657,178.63,178.56,20.0]
[1721865819767,0.7938657,178.63,178.57,45.0]
[1721865819959,0.7938657,178.63,178.58,20.0]
[1721865824577,0.7938657,178.63,178.57,20.0]
[1721865832402,0.7938657,178.63,178.59,12.21]
[1721865832575,0.7938657,178.63,178.6,20.0]
[1721865833792,0.7938657,178.63,178.62,12.21]
[1721865833972,0.7938657,178.63,178.62,32.21]
[1721865834470,0.7938657,178.63,178.62,20.0]
[1721865834884,0.7938657,178.63,178.59,12.21]
[1721865835096,0.7938657,178.63,178.6,20.0]
[1721865835792,0.7938657,178.63,178.48,16.85]
[1721865835793,12.21,178.61,178.55,12.21]
[1721865835973,12.21,178.6,178.54,12.21]
[1721865836172,12.21,178.6,178.54,42.21]
[1721865836388,12.21,178.59,178.54,30.0]
[1721865836696,12.21,178.57,178.49,2.21160387]
[1721865836885,12.21,178.57,178.51,12.21]
[1721865837200,12.21,178.57,178.48,16.5211]
[1721865837201,12.21,178.57,178.52,12.21]
[1721865837703,12.21,178.57,178.48,16.5211]
[1721865838403,12.21,178.59,178.54,12.21]
[1721865838783,12.21,178.59,178.48,16.5211]
[1721865839087,12.21,178.57,178.52,12.21]
[1721865839292,12.21,178.57,178.53,20.0]
[1721865839585,12.21,178.57,178.48,16.5211]
[1721865839586,12.21,178.55,178.44,35.29716244]
[1721865839789,13.12256494,178.54,178.49,12.21]
[1721865839988,12.21,178.52,178.45,30.0]
[1721865840187,12.21,178.51,178.46,12.21]
[1721865840588,17.8117,178.52,178.44,18.14870075]
[1721865840900,12.21,178.5,178.44,2.31910075]
[1721865841075,12.21,178.5,178.44,12.21]
[1721865841599,12.21,178.5,178.45,12.21]